fUSD/lending_fUSD_20260530
["ID","MTS","AMOUNT","RATE_DAILY","PERIOD"]
[423412707,1780092296000,-555.5,0.00039379,120]
[423412706,1780092296000,-555.5,0.00039379,120]
[423412704,1780092296000,-562.12,0.00039379,120]
[423412714,1780092296000,-555.5,0.00039379,120]
[423412736,1780092297000,-582.35132262,0.00039379,120]
[423412737,1780092297000,-186.5113224,0.00039379,120]
[423412735,1780092297000,-2054.87392105,0.00039379,120]
[423412732,1780092297000,-285.73078097,0.00039379,120]
[423412731,1780092297000,-199.86104554,0.00039379,120]
[423412733,1780092297000,-204.46232456,0.00039379,120]
[423412727,1780092297000,-555.5,0.00039379,120]
[423412730,1780092297000,-659.65941036,0.00039379,120]
[423412728,1780092297000,-555.66,0.00039379,120]
[423412726,1780092297000,-555.5,0.00039379,120]
[423412725,1780092297000,-555.5,0.00039379,120]
[423412724,1780092297000,-555.5,0.00039379,120]
[423412723,1780092297000,-555.5,0.00039379,120]
[423412729,1780092297000,-487.07,0.00039379,120]
[423412740,1780092297000,-189.99134238,0.00039379,120]
[423412734,1780092297000,-196.33767738,0.00039379,120]
[423412738,1780092297000,-1343.47144213,0.00039379,120]
[423412739,1780092297000,-197.31284546,0.00039379,120]
[423412755,1780092297000,-266.44060327,0.00039379,120]
[423412754,1780092297000,-1567.78,0.00039379,120]
[423412751,1780092297000,-451.2186895,0.00039379,120]
[423412753,1780092297000,-401.32520793,0.00039379,120]
[423412748,1780092297000,-1411.08841213,0.00039379,120]
[423412750,1780092297000,-1499.70516387,0.00039379,120]
[423412752,1780092297000,-201.96933453,0.00039379,120]
[423412747,1780092297000,-1004.09635547,0.00039379,120]
[423412746,1780092297000,-174.406425,0.00039379,120]
[423412745,1780092297000,-1157.83806694,0.00039379,120]
[423412744,1780092297000,-510.88063829,0.00039379,120]
[423412743,1780092297000,-338.75715876,0.00039379,120]
[423412742,1780092297000,-200.91084692,0.00039379,120]
[423412749,1780092297000,-300.01806198,0.00039379,120]
[423412741,1780092297000,-162.43146513,0.00039379,120]
[423412771,1780092298000,-1103.79,0.00039379,120]
[423412768,1780092298000,-204.29400667,0.00039379,120]
[423412770,1780092298000,-259.71679134,0.00039379,120]
[423412772,1780092298000,-959.8199961,0.00039379,120]
[423412775,1780092298000,-17557.72,0.00039379,120]
[423412773,1780092298000,-320.56907323,0.00039379,120]
[423412776,1780092298000,-200.0,0.00039379,120]
[423412769,1780092298000,-4036.0,0.00039379,120]
[423412774,1780092298000,-1600.0,0.00039379,120]
[423412767,1780092298000,-287.75157274,0.00039379,120]
[423412760,1780092298000,-3388.03,0.00039379,120]
[423412765,1780092298000,-299.92021023,0.00039379,120]
[423412763,1780092298000,-188.30900527,0.00039379,120]
[423412764,1780092298000,-1325.22,0.00039379,120]
[423412761,1780092298000,-3399.31,0.00039379,120]
[423412759,1780092298000,-31219.76,0.00039379,120]
[423412762,1780092298000,-3106.39,0.00039379,120]
[423412758,1780092298000,-2435.9,0.00039379,120]
[423412757,1780092298000,-2524.21,0.00039379,120]
[423412756,1780092298000,-11356.31,0.00039379,120]
[423412766,1780092298000,-227.62381947,0.00039379,120]
[423412777,1780092298000,-200.0,0.00039379,120]
[423412779,1780092298000,-200.0,0.00039379,120]
[423412781,1780092298000,-200.0,0.00039379,120]
[423412778,1780092298000,-200.0,0.00039379,120]
[423412800,1780092298000,-246.60903006,0.00039379,120]
[423412798,1780092298000,-500.0,0.00039379,120]
[423412799,1780092298000,-500.0,0.00039379,120]
[423412797,1780092298000,-500.0,0.00039379,120]
[423412796,1780092298000,-500.0,0.00039379,120]
[423412791,1780092298000,-9818.18,0.00039379,120]
[423412794,1780092298000,-500.0,0.00039379,120]
[423412793,1780092298000,-500.0,0.00039379,120]
[423412792,1780092298000,-500.0,0.00039379,120]
[423412795,1780092298000,-500.0,0.00039379,120]
[423412787,1780092298000,-200.0,0.00039379,120]
[423412789,1780092298000,-200.0,0.00039379,120]
[423412780,1780092298000,-200.0,0.00039379,120]
[423412782,1780092298000,-200.0,0.00039379,120]
[423412783,1780092298000,-200.0,0.00039379,120]
[423412784,1780092298000,-200.0,0.00039379,120]
[423412788,1780092298000,-200.0,0.00039379,120]
[423412786,1780092298000,-200.0,0.00039379,120]
[423412790,1780092298000,-319.00038559,0.00039379,120]
[423412785,1780092298000,-200.0,0.00039379,120]
[423412814,1780092299000,-3445.52932587,0.00039379,120]
[423412809,1780092299000,-683.9811,0.00039379,120]
[423412816,1780092299000,-793.03714408,0.00039379,120]
[423412813,1780092299000,-2533.32,0.00039379,120]
[423412811,1780092299000,-493.91,0.00039379,120]
[423412812,1780092299000,-270.02,0.00039379,120]
[423412810,1780092299000,-1178.2,0.00039379,120]
[423412805,1780092299000,-500.0,0.00039379,120]
[423412808,1780092299000,-3000.0,0.00039379,120]
[423412806,1780092299000,-500.0,0.00039379,120]
[423412804,1780092299000,-591.47691297,0.00039379,120]
[423412802,1780092299000,-24062.96,0.00039379,120]
[423412803,1780092299000,-2844.43,0.00039379,120]
[423412801,1780092299000,-829.93729925,0.00039379,120]
[423412815,1780092299000,-2850.0,0.00039379,120]
[423412807,1780092299000,-2377.9384348,0.00039379,120]
[423412818,1780092299000,-2167.27724641,0.00039379,120]
[423412819,1780092299000,-212.06016386,0.00039379,120]
[423412833,1780092299000,-515.42242839,0.00039379,120]
[423412817,1780092299000,-1275.41414201,0.00039379,120]
[423412835,1780092299000,-3815.36515554,0.00039379,120]
[423412834,1780092299000,-795.25551108,0.00039379,120]
[423412832,1780092299000,-903.25207002,0.00039379,120]
[423412831,1780092299000,-3842.12467294,0.00039379,120]
[423412830,1780092299000,-198.33565874,0.00039379,120]
[423412827,1780092299000,-638.74133563,0.00039379,120]
[423412828,1780092299000,-1459.57478382,0.00039379,120]
[423412824,1780092299000,-303.12637134,0.00039379,120]
[423412826,1780092299000,-1917.04656825,0.00039379,120]
[423412825,1780092299000,-441.3088784,0.00039379,120]
[423412823,1780092299000,-1480.44809232,0.00039379,120]
[423412821,1780092299000,-2565.56516803,0.00039379,120]
[423412822,1780092299000,-885.34,0.00039379,120]
[423412820,1780092299000,-2501.74223657,0.00039379,120]
[423412829,1780092299000,-4773.19256687,0.00039379,120]
[423412850,1780092300000,-405.06325229,0.00039379,120]
[423412848,1780092300000,-623.49573412,0.00039379,120]
[423412849,1780092300000,-275.32545382,0.00039379,120]
[423412853,1780092300000,-274.54386624,0.00039379,120]
[423412851,1780092300000,-5238.93465129,0.00039379,120]
[423412845,1780092300000,-439.2359433,0.00039379,120]
[423412847,1780092300000,-2137.91406563,0.00039379,120]
[423412846,1780092300000,-426.36542036,0.00039379,120]
[423412836,1780092300000,-452.7508208,0.00039379,120]
[423412844,1780092300000,-272.53089078,0.00039379,120]
[423412841,1780092300000,-265.64522766,0.00039379,120]
[423412839,1780092300000,-353.06057581,0.00039379,120]
[423412842,1780092300000,-455.85996018,0.00039379,120]
[423412840,1780092300000,-263.16896755,0.00039379,120]
[423412838,1780092300000,-338.37417707,0.00039379,120]
[423412837,1780092300000,-5410.48664336,0.00039379,120]
[423412843,1780092300000,-2792.70240935,0.00039379,120]
[423412852,1780092300000,-1694.43210426,0.00039379,120]
[423412857,1780092300000,-7421.54503671,0.00039379,120]
[423412854,1780092300000,-452.92450162,0.00039379,120]
[423412855,1780092300000,-563.93757517,0.00039379,120]
[423412871,1780092300000,-496.30776852,0.00039379,120]
[423412870,1780092300000,-282.73671513,0.00039379,120]
[423412867,1780092300000,-2555.21763047,0.00039379,120]
[423412866,1780092300000,-731.15004741,0.00039379,120]
[423412869,1780092300000,-4342.09225924,0.00039379,120]
[423412863,1780092300000,-186.02513564,0.00039379,120]
[423412865,1780092300000,-187.10707425,0.00039379,120]
[423412868,1780092300000,-2554.59600089,0.00039379,120]
[423412864,1780092300000,-570.07766248,0.00039379,120]
[423412861,1780092300000,-487.07,0.00039379,120]
[423412859,1780092300000,-756.0,0.00039379,120]
[423412860,1780092300000,-3675.65719749,0.00039379,120]
[423412858,1780092300000,-375.56755127,0.00039379,120]
[423412872,1780092300000,-3762.96607981,0.00039379,120]
[423412856,1780092300000,-1361.54575767,0.00039379,120]
[423412862,1780092300000,-532.79746261,0.00039379,120]
[423412883,1780092301000,-208.13132767,0.00039379,120]
[423412890,1780092301000,-2150.0,0.00039379,120]
[423412887,1780092301000,-448.00813592,0.00039379,120]
[423412885,1780092301000,-162.66820625,0.00039379,120]
[423412886,1780092301000,-201.8357677,0.00039379,120]
[423412884,1780092301000,-2613.91784826,0.00039379,120]
[423412882,1780092301000,-4895.09782197,0.00039379,120]
[423412875,1780092301000,-2881.33774901,0.00039379,120]
[423412880,1780092301000,-351.08202229,0.00039379,120]
[423412878,1780092301000,-2456.05446869,0.00039379,120]
[423412879,1780092301000,-495.99515595,0.00039379,120]
[423412877,1780092301000,-1511.64857388,0.00039379,120]
[423412876,1780092301000,-500.0,0.00039379,120]
[423412874,1780092301000,-4956.96928308,0.00039379,120]
[423412873,1780092301000,-492.20216594,0.00039379,120]
[423412881,1780092301000,-160.39424382,0.00039379,120]
[423412889,1780092301000,-1851.0,0.00039379,120]
[423412891,1780092301000,-1000.0,0.00039379,120]
[423412893,1780092301000,-1000.0,0.00039379,120]
[423412888,1780092301000,-2222.0,0.00039379,120]
[423412904,1780092301000,-1000.0,0.00039379,120]
[423412905,1780092301000,-1000.0,0.00039379,120]
[423412906,1780092301000,-1000.0,0.00039379,120]
[423412903,1780092301000,-196.01,0.00039379,120]
[423412902,1780092301000,-500.0,0.00039379,120]
[423412901,1780092301000,-500.0,0.00039379,120]
[423412907,1780092301000,-1000.0,0.00039379,120]
[423412898,1780092301000,-500.0,0.00039379,120]
[423412899,1780092301000,-500.0,0.00039379,120]
[423412897,1780092301000,-2029.45,0.00039379,120]
[423412896,1780092301000,-712.13,0.00039379,120]
[423412895,1780092301000,-1000.0,0.00039379,120]
[423412894,1780092301000,-1000.0,0.00039379,120]
[423412892,1780092301000,-484.05,0.00039379,120]
[423412900,1780092301000,-500.0,0.00039379,120]
[423412919,1780092302000,-1000.0,0.00039379,120]
[423412922,1780092302000,-1000.0,0.00039379,120]
[423412918,1780092302000,-1000.0,0.00039379,120]
[423412917,1780092302000,-1000.0,0.00039379,120]
[423412915,1780092302000,-1000.0,0.00039379,120]
[423412916,1780092302000,-1000.0,0.00039379,120]
[423412911,1780092302000,-1000.0,0.00039379,120]
[423412912,1780092302000,-1000.0,0.00039379,120]
[423412913,1780092302000,-1000.0,0.00039379,120]
[423412909,1780092302000,-1000.0,0.00039379,120]
[423412908,1780092302000,-1000.0,0.00039379,120]
[423412910,1780092302000,-1000.0,0.00039379,120]
[423412914,1780092302000,-1000.0,0.00039379,120]
[423412920,1780092302000,-1000.0,0.00039379,120]
[423412926,1780092302000,-152.5,0.00039379,120]
[423412923,1780092302000,-326.24,0.00039379,120]
[423412921,1780092302000,-1000.0,0.00039379,120]
[423412936,1780092302000,-1000.0,0.00039379,120]
[423412937,1780092302000,-1000.0,0.00039379,120]
[423412935,1780092302000,-1000.0,0.00039379,120]
[423412933,1780092302000,-1000.0,0.00039379,120]
[423412932,1780092302000,-1000.0,0.00039379,120]
[423412934,1780092302000,-1000.0,0.00039379,120]
[423412931,1780092302000,-1000.0,0.00039379,120]
[423412929,1780092302000,-2853.10023007,0.00039379,120]
[423412927,1780092302000,-1410.09,0.00039379,120]
[423412928,1780092302000,-1906.461075,0.00039379,120]
[423412924,1780092302000,-44583.11,0.00039379,120]
[423412925,1780092302000,-700.59684562,0.00039379,120]
[423412930,1780092302000,-1000.0,0.00039379,120]
[423412944,1780092303000,-1000.0,0.00039379,120]
[423412939,1780092303000,-1000.0,0.00039379,120]
[423412938,1780092303000,-1000.0,0.00039379,120]
[423412940,1780092303000,-1000.0,0.00039379,120]
[423412942,1780092303000,-1000.0,0.00039379,120]
[423412943,1780092303000,-1000.0,0.00039379,120]
[423412945,1780092303000,-1000.0,0.00039379,120]
[423412946,1780092303000,-1000.0,0.00039379,120]
[423412941,1780092303000,-1000.0,0.00039379,120]
[423412948,1780092303000,-1000.0,0.00039379,120]
[423412954,1780092303000,-1000.0,0.00039379,120]
[423412952,1780092303000,-1000.0,0.00039379,120]
[423412955,1780092303000,-1000.0,0.00039379,120]
[423412956,1780092303000,-1000.0,0.00039379,120]
[423412951,1780092303000,-1000.0,0.00039379,120]
[423412950,1780092303000,-1000.0,0.00039379,120]
[423412949,1780092303000,-1000.0,0.00039379,120]
[423412953,1780092303000,-1000.0,0.00039379,120]
[423412947,1780092303000,-1000.0,0.00039379,120]
[423412964,1780092304000,-1000.0,0.00039379,120]
[423412957,1780092304000,-1000.0,0.00039379,120]
[423412958,1780092304000,-1000.0,0.00039379,120]
[423412959,1780092304000,-1000.0,0.00039379,120]
[423412961,1780092304000,-1000.0,0.00039379,120]
[423412960,1780092304000,-1000.0,0.00039379,120]
[423412963,1780092304000,-1000.0,0.00039379,120]
[423412962,1780092304000,-1000.0,0.00039379,120]
[423412965,1780092304000,-1000.0,0.00039379,120]
[423412967,1780092304000,-1000.0,0.00039379,120]
[423412968,1780092304000,-1000.0,0.00039379,120]
[423412969,1780092304000,-1000.0,0.00039379,120]
[423412970,1780092304000,-1000.0,0.00039379,120]
[423412971,1780092304000,-1000.0,0.00039379,120]
[423412972,1780092304000,-1000.0,0.00039379,120]
[423412973,1780092304000,-2970.589569,0.00039379,120]
[423412966,1780092304000,-1000.0,0.00039379,120]
[423412982,1780092305000,-1660.91562232,0.00039379,120]
[423412974,1780092305000,-4127.0,0.00039379,120]
[423412977,1780092305000,-575.02196922,0.00039379,120]
[423412976,1780092305000,-1700.0,0.00039379,120]
[423412978,1780092305000,-642.78364313,0.00039379,120]
[423412980,1780092305000,-760.60401067,0.00039379,120]
[423412979,1780092305000,-1538.91801132,0.00039379,120]
[423412981,1780092305000,-3278.56097203,0.00039379,120]
[423412975,1780092305000,-1596.0,0.00039379,120]
[423412983,1780092305000,-1841.08942422,0.00039379,120]
[423412985,1780092305000,-970.92405795,0.00039379,120]
[423412986,1780092305000,-1510.86553928,0.00039379,120]
[423412987,1780092305000,-565.185966,0.00039379,120]
[423412989,1780092305000,-2707.49692561,0.00039379,120]
[423412988,1780092305000,-703.32954454,0.00039379,120]
[423412990,1780092305000,-3069.71663765,0.00039379,120]
[423412991,1780092305000,-990.10103145,0.00039379,120]
[423412984,1780092305000,-844.07103193,0.00039379,120]
[423413003,1780092306000,-837.81916168,0.00039379,120]
[423413001,1780092306000,-633.23055702,0.00039379,120]
[423412999,1780092306000,-4396.92857609,0.00039379,120]
[423413000,1780092306000,-8417.23508701,0.00039379,120]
[423412998,1780092306000,-1013.7368582,0.00039379,120]
[423412992,1780092306000,-3015.8774373,0.00039379,120]
[423412997,1780092306000,-1267.92131856,0.00039379,120]
[423412994,1780092306000,-1169.56097127,0.00039379,120]
[423412995,1780092306000,-910.13831879,0.00039379,120]
[423413004,1780092306000,-5872.6386299,0.00039379,120]
[423412993,1780092306000,-2941.02688331,0.00039379,120]
[423412996,1780092306000,-2978.14228491,0.00039379,120]
[423413006,1780092306000,-6359.97339574,0.00039379,120]
[423413002,1780092306000,-912.9613995,0.00039379,120]
[423413007,1780092306000,-2110.094999,0.00039379,120]
[423413019,1780092306000,-854.79986982,0.00039379,120]
[423413005,1780092306000,-2102.92161354,0.00039379,120]
[423413017,1780092306000,-597.85299745,0.00039379,120]
[423413018,1780092306000,-929.97647914,0.00039379,120]
[423413016,1780092306000,-1823.75794881,0.00039379,120]
[423413015,1780092306000,-865.40850676,0.00039379,120]
[423413014,1780092306000,-154.08893571,0.00039379,120]
[423413013,1780092306000,-394.68757573,0.00039379,120]
[423413012,1780092306000,-932.81180889,0.00039379,120]
[423413010,1780092306000,-2679.32836377,0.00039379,120]
[423413008,1780092306000,-2357.82899986,0.00039379,120]
[423413009,1780092306000,-1060.34942213,0.00039379,120]
[423413011,1780092306000,-1363.85316485,0.00039379,120]
[423413026,1780092307000,-2722.909,0.00039379,120]
[423413029,1780092307000,-1728.37724689,0.00039379,120]
[423413030,1780092307000,-9102.91,0.00039379,120]
[423413028,1780092307000,-2112.90401439,0.00039379,120]
[423413027,1780092307000,-1052.08069815,0.00039379,120]
[423413020,1780092307000,-586.16192314,0.00039379,120]
[423413025,1780092307000,-4205.43394,0.00039379,120]
[423413023,1780092307000,-9222.48274811,0.00039379,120]
[423413021,1780092307000,-406.85203721,0.00039379,120]
[423413022,1780092307000,-3374.50557955,0.00039379,120]
[423413031,1780092307000,-731.16,0.00039379,120]
[423413024,1780092307000,-657.71992093,0.00039379,120]
[423413033,1780092307000,-1000.0,0.00039379,120]
[423413046,1780092307000,-8349.66056002,0.00039379,120]
[423413034,1780092307000,-1200.0,0.00039379,120]
[423413032,1780092307000,-3807.66875868,0.00039379,120]
[423413045,1780092307000,-3098.2764051,0.00039379,120]
[423413044,1780092307000,-6479.85000198,0.00039379,120]
[423413043,1780092307000,-5082.96122212,0.00039379,120]
[423413041,1780092307000,-948.55,0.00039379,120]
[423413042,1780092307000,-4999.999995,0.00039379,120]
[423413038,1780092307000,-1000.0,0.00039379,120]
[423413039,1780092307000,-15128.65043323,0.00039379,120]
[423413036,1780092307000,-1000.0,0.00039379,120]
[423413035,1780092307000,-1300.0,0.00039379,120]
[423413037,1780092307000,-1000.0,0.00039379,120]
[423413040,1780092307000,-6805.66101846,0.00039379,120]
[423413054,1780092308000,-490.21,0.00039379,120]
[423413058,1780092308000,-262.52309279,0.00039379,120]
[423413056,1780092308000,-10170.54808711,0.00039379,120]
[423413055,1780092308000,-152.74218491,0.00039379,120]
[423413053,1780092308000,-808.26,0.00039379,120]
[423413057,1780092308000,-229.2,0.00039379,120]
[423413050,1780092308000,-4788.62934419,0.00039379,120]
[423413049,1780092308000,-3588.24988659,0.00039379,120]
[423413048,1780092308000,-4773.44910855,0.00039379,120]
[423413047,1780092308000,-4999.999997,0.00039379,120]
[423413052,1780092308000,-207.56515423,0.00039379,120]
[423413059,1780092308000,-7270.94632026,0.00039379,120]
[423413051,1780092308000,-491.61,0.00039379,120]
[423413063,1780092308000,-1020.72262703,0.00039379,120]
[423413060,1780092308000,-288.07314792,0.00039379,120]
[423413070,1780092308000,-500.0,0.00039379,120]
[423413069,1780092308000,-500.0,0.00039379,120]
[423413071,1780092308000,-500.0,0.00039379,120]
[423413068,1780092308000,-1331.76318741,0.00039379,120]
[423413074,1780092308000,-186.54311138,0.00039379,120]
[423413073,1780092308000,-500.0,0.00039379,120]
[423413065,1780092308000,-1020.72262703,0.00039379,120]
[423413066,1780092308000,-204.1445254,0.00039379,120]
[423413064,1780092308000,-1020.72262703,0.00039379,120]
[423413062,1780092308000,-1020.72262703,0.00039379,120]
[423413061,1780092308000,-3226.371799,0.00039379,120]
[423413067,1780092308000,-10137.77,0.00039379,120]
[423413083,1780092309000,-1000.0,0.00039379,120]
[423413081,1780092309000,-814.94,0.00039379,120]
[423413082,1780092309000,-1000.0,0.00039379,120]
[423413080,1780092309000,-3916.0,0.00039379,120]
[423413077,1780092309000,-487.03,0.00039379,120]
[423413079,1780092309000,-500.0,0.00039379,120]
[423413076,1780092309000,-500.0,0.00039379,120]
[423413075,1780092309000,-500.0,0.00039379,120]
[423413085,1780092309000,-8578.62698193,0.00039379,120]
[423413078,1780092309000,-500.0,0.00039379,120]
[423413084,1780092309000,-1000.0,0.00039379,120]
[423413086,1780092309000,-334.6,0.00039379,120]
[423413087,1780092309000,-2462.5809801,0.00039379,120]
[423413088,1780092309000,-500.0,0.00039379,120]
[423413098,1780092309000,-500.0,0.00039379,120]
[423413099,1780092309000,-500.0,0.00039379,120]
[423413097,1780092309000,-500.0,0.00039379,120]
[423413094,1780092309000,-500.0,0.00039379,120]
[423413095,1780092309000,-500.0,0.00039379,120]
[423413096,1780092309000,-500.0,0.00039379,120]
[423413091,1780092309000,-500.0,0.00039379,120]
[423413092,1780092309000,-500.0,0.00039379,120]
[423413090,1780092309000,-500.0,0.00039379,120]
[423413089,1780092309000,-500.0,0.00039379,120]
[423413093,1780092309000,-500.0,0.00039379,120]
[423413108,1780092310000,-1026.6078701,0.00039379,120]
[423413112,1780092310000,-1000.0,0.00039379,120]
[423413114,1780092310000,-1000.0,0.00039379,120]
[423413113,1780092310000,-1000.0,0.00039379,120]
[423413111,1780092310000,-5628.10604001,0.00039379,120]
[423413110,1780092310000,-1846.31768162,0.00039379,120]
[423413107,1780092310000,-9040.0338169,0.00039379,120]
[423413102,1780092310000,-500.0,0.00039379,120]
[423413106,1780092310000,-500.0,0.00039379,120]
[423413101,1780092310000,-500.0,0.00039379,120]
[423413103,1780092310000,-500.0,0.00039379,120]
[423413104,1780092310000,-500.0,0.00039379,120]
[423413100,1780092310000,-14692.99723474,0.00039379,120]
[423413115,1780092310000,-1000.0,0.00039379,120]
[423413105,1780092310000,-500.0,0.00039379,120]
[423413116,1780092310000,-1000.0,0.00039379,120]
[423413109,1780092310000,-3561.43133972,0.00039379,120]
[423413117,1780092310000,-1000.0,0.00039379,120]
[423413133,1780092310000,-16888.0,0.00039379,120]
[423413132,1780092310000,-16888.0,0.00039379,120]
[423413130,1780092310000,-2000.0,0.00039379,120]
[423413131,1780092310000,-16888.0,0.00039379,120]
[423413129,1780092310000,-2000.0,0.00039379,120]
[423413126,1780092310000,-458.0,0.00039379,120]
[423413128,1780092310000,-2000.0,0.00039379,120]
[423413127,1780092310000,-2000.0,0.00039379,120]
[423413118,1780092310000,-1000.0,0.00039379,120]
[423413125,1780092310000,-47348.87,0.00039379,120]
[423413124,1780092310000,-1694.0,0.00039379,120]
[423413123,1780092310000,-1000.0,0.00039379,120]
[423413121,1780092310000,-1000.0,0.00039379,120]
[423413122,1780092310000,-1000.0,0.00039379,120]
[423413119,1780092310000,-1000.0,0.00039379,120]
[423413120,1780092310000,-1000.0,0.00039379,120]
[423413134,1780092310000,-16888.0,0.00039379,120]
[423413149,1780092311000,-800.0,0.00039379,120]
[423413148,1780092311000,-800.0,0.00039379,120]
[423413151,1780092311000,-800.0,0.00039379,120]
[423413150,1780092311000,-800.0,0.00039379,120]
[423413147,1780092311000,-800.0,0.00039379,120]
[423413145,1780092311000,-2862.1,0.00039379,120]
[423413146,1780092311000,-800.0,0.00039379,120]
[423413144,1780092311000,-1057.0,0.00039379,120]
[423413140,1780092311000,-1000.0,0.00039379,120]
[423413143,1780092311000,-1000.0,0.00039379,120]
[423413141,1780092311000,-1000.0,0.00039379,120]
[423413139,1780092311000,-1000.0,0.00039379,120]
[423413138,1780092311000,-1000.0,0.00039379,120]
[423413137,1780092311000,-1000.0,0.00039379,120]
[423413136,1780092311000,-1000.0,0.00039379,120]
[423413154,1780092311000,-800.0,0.00039379,120]
[423413142,1780092311000,-1000.0,0.00039379,120]
[423413135,1780092311000,-1000.0,0.00039379,120]
[423413152,1780092311000,-800.0,0.00039379,120]
[423413153,1780092311000,-800.0,0.00039379,120]
[423413155,1780092311000,-800.0,0.00039379,120]
[423413172,1780092311000,-1000.0,0.00039379,120]
[423413171,1780092311000,-800.0,0.00039379,120]
[423413170,1780092311000,-800.0,0.00039379,120]
[423413168,1780092311000,-800.0,0.00039379,120]
[423413167,1780092311000,-800.0,0.00039379,120]
[423413165,1780092311000,-800.0,0.00039379,120]
[423413166,1780092311000,-800.0,0.00039379,120]
[423413169,1780092311000,-800.0,0.00039379,120]
[423413162,1780092311000,-800.0,0.00039379,120]
[423413164,1780092311000,-800.0,0.00039379,120]
[423413158,1780092311000,-800.0,0.00039379,120]
[423413159,1780092311000,-800.0,0.00039379,120]
[423413157,1780092311000,-800.0,0.00039379,120]
[423413156,1780092311000,-800.0,0.00039379,120]
[423413161,1780092311000,-800.0,0.00039379,120]
[423413163,1780092311000,-800.0,0.00039379,120]
[423413160,1780092311000,-800.0,0.00039379,120]
[423413182,1780092312000,-300.0,0.00039379,120]
[423413189,1780092312000,-5000.0,0.00039379,120]
[423413186,1780092312000,-487.0,0.00039379,120]
[423413188,1780092312000,-5000.0,0.00039379,120]
[423413183,1780092312000,-605.68483181,0.00039379,120]
[423413185,1780092312000,-751.0,0.00039379,120]
[423413184,1780092312000,-1639.9697388,0.00039379,120]
[423413179,1780092312000,-972.77729817,0.00039379,120]
[423413190,1780092312000,-5000.0,0.00039379,120]
[423413180,1780092312000,-487.0,0.00039379,120]
[423413178,1780092312000,-194.66,0.00039379,120]
[423413177,1780092312000,-1000.0,0.00039379,120]
[423413176,1780092312000,-1000.0,0.00039379,120]
[423413175,1780092312000,-1000.0,0.00039379,120]
[423413174,1780092312000,-1000.0,0.00039379,120]
[423413173,1780092312000,-1000.0,0.00039379,120]
[423413181,1780092312000,-487.0,0.00039379,120]
[423413193,1780092312000,-5000.0,0.00039379,120]
[423413187,1780092312000,-4811.54022471,0.00039379,120]
[423413191,1780092312000,-5000.0,0.00039379,120]
[423413209,1780092312000,-150.0,0.00039379,120]
[423413208,1780092312000,-150.0,0.00039379,120]
[423413206,1780092312000,-150.0,0.00039379,120]
[423413205,1780092312000,-150.0,0.00039379,120]
[423413204,1780092312000,-10420.04675999,0.00039379,120]
[423413203,1780092312000,-150.0,0.00039379,120]
[423413202,1780092312000,-2104.78,0.00039379,120]
[423413198,1780092312000,-5373.09,0.00039379,120]
[423413207,1780092312000,-150.0,0.00039379,120]
[423413200,1780092312000,-487.0,0.00039379,120]
[423413201,1780092312000,-9046.29377673,0.00039379,120]
[423413194,1780092312000,-3249.91686848,0.00039379,120]
[423413195,1780092312000,-487.0,0.00039379,120]
[423413192,1780092312000,-5000.0,0.00039379,120]
[423413210,1780092312000,-150.0,0.00039379,120]
[423413197,1780092312000,-1302.73495801,0.00039379,120]
[423413199,1780092312000,-487.0,0.00039379,120]
[423413196,1780092312000,-1854.2996971,0.00039379,120]
[423413226,1780092313000,-487.0,0.00039379,120]
[423413223,1780092313000,-487.0,0.00039379,120]
[423413221,1780092313000,-166.0,0.00039379,120]
[423413222,1780092313000,-1817.34450455,0.00039379,120]
[423413220,1780092313000,-150.0,0.00039379,120]
[423413219,1780092313000,-150.0,0.00039379,120]
[423413217,1780092313000,-150.0,0.00039379,120]
[423413216,1780092313000,-150.0,0.00039379,120]
[423413215,1780092313000,-150.0,0.00039379,120]